[Event "*** Titled Tuesday Blitz"]
[Site "Chess.com"]
[Date "2020.05.05"]
[Round "10"]
[White "11kevin"]
[Black "XDPS"]
[Result "0-1"]
[WhiteElo "2538"]
[BlackElo "2724"]
[TimeControl "180+1"]
[EndTime "11:59:41 PDT"]
[Termination "XDPS won by resignation"]

1. d4 {[%clk 0:03:00.9]} 1... d5 {[%clk 0:02:55]} 2. c4 {[%clk 0:03:00.3]} 2...
e6 {[%clk 0:02:55.4]} 3. Nc3 {[%clk 0:03:00.2]} 3... Nf6 {[%clk 0:02:55.3]} 4.
Nf3 {[%clk 0:03:00]} 4... c6 {[%clk 0:02:55.1]} 5. e3 {[%clk 0:02:59.7]} 5...
Nbd7 {[%clk 0:02:55.4]} 6. Qc2 {[%clk 0:02:59.6]} 6... Bd6 {[%clk 0:02:55.4]} 7.
Bd3 {[%clk 0:02:59.2]} 7... O-O {[%clk 0:02:55.6]} 8. O-O {[%clk 0:02:57.8]}
8... dxc4 {[%clk 0:02:56.1]} 9. Bxc4 {[%clk 0:02:55.4]} 9... a6 {[%clk
0:02:56.7]} 10. Be2 {[%clk 0:02:56.3]} 10... b5 {[%clk 0:02:43.2]} 11. e4 {[%clk
0:02:55.6]} 11... e5 {[%clk 0:02:43.1]} 12. dxe5 {[%clk 0:02:46.5]} 12... Nxe5
{[%clk 0:02:42.5]} 13. Nh4 {[%clk 0:02:46.6]} 13... Re8 {[%clk 0:02:06]} 14. h3
{[%clk 0:02:30.8]} 14... Ng6 {[%clk 0:02:03.7]} 15. Nf5 {[%clk 0:02:22.9]} 15...
Be5 {[%clk 0:02:03.2]} 16. Rd1 {[%clk 0:02:19.9]} 16... Qc7 {[%clk 0:02:00.1]}
17. Bf3 {[%clk 0:02:18.4]} 17... Be6 {[%clk 0:01:34.8]} 18. g3 {[%clk
0:02:15.1]} 18... c5 {[%clk 0:00:52.3]} 19. Bg2 {[%clk 0:02:07.1]} 19... Rad8
{[%clk 0:00:48.7]} 20. Be3 {[%clk 0:02:04.8]} 20... c4 {[%clk 0:00:46.1]} 21. f4
{[%clk 0:01:56.6]} 21... Bxc3 {[%clk 0:00:41.1]} 22. Qxc3 {[%clk 0:01:50.6]}
22... Bxf5 {[%clk 0:00:39.2]} 23. exf5 {[%clk 0:01:49.1]} 23... Ne7 {[%clk
0:00:38.5]} 24. g4 {[%clk 0:01:45.7]} 24... Ned5 {[%clk 0:00:36.8]} 25. Bxd5
{[%clk 0:01:31]} 25... Nxd5 {[%clk 0:00:36.7]} 26. Rxd5 {[%clk 0:01:27.3]} 26...
Rxd5 {[%clk 0:00:36.8]} 27. Rc1 {[%clk 0:01:24.8]} 27... Qd6 {[%clk 0:00:26.2]}
28. Re1 {[%clk 0:01:18.9]} 28... Rd3 {[%clk 0:00:23.9]} 29. Bf2 {[%clk
0:01:16.2]} 29... Rf8 {[%clk 0:00:17.4]} 30. Qc1 {[%clk 0:01:09.6]} 30... Rxh3
{[%clk 0:00:17.4]} 31. Kg2 {[%clk 0:01:09.4]} 31... Rd3 {[%clk 0:00:17.9]} 32.
g5 {[%clk 0:01:08.3]} 32... Qd5+ {[%clk 0:00:18.3]} 33. Kh2 {[%clk 0:01:07.5]}
33... Qxf5 {[%clk 0:00:18.8]} 34. Bg3 {[%clk 0:01:06.3]} 34... Qg4 {[%clk
0:00:18.5]} 35. Re3 {[%clk 0:01:06.6]} 35... Qh5+ {[%clk 0:00:14.9]} 36. Kg2
{[%clk 0:01:05.9]} 36... Rfd8 {[%clk 0:00:14.8]} 37. Qe1 {[%clk 0:01:04.9]}
37... Rxe3 {[%clk 0:00:14.2]} 38. Qxe3 {[%clk 0:01:04.6]} 38... Qd1 {[%clk
0:00:14.6]} 39. Bf2 {[%clk 0:01:03.8]} 39... Qd5+ {[%clk 0:00:14.7]} 40. Kg1
{[%clk 0:01:03.4]} 40... Qe6 {[%clk 0:00:14.5]} 41. Qa7 {[%clk 0:01:00.7]} 41...
Qg4+ {[%clk 0:00:14.6]} 42. Kh2 {[%clk 0:01:00.4]} 42... Qh5+ {[%clk 0:00:14.8]}
43. Kg2 {[%clk 0:00:59.4]} 43... Qg6 {[%clk 0:00:15.2]} 44. Qc7 {[%clk
0:00:58.5]} 44... Re8 {[%clk 0:00:14.9]} 45. Qd7 {[%clk 0:00:56.9]} 45... Qe4+
{[%clk 0:00:15.2]} 46. Kh2 {[%clk 0:00:57.1]} 46... Qe6 {[%clk 0:00:15.7]} 47.
Qc7 {[%clk 0:00:54.9]} 47... h6 {[%clk 0:00:14.6]} 48. Kg3 {[%clk 0:00:51.7]}
48... hxg5 {[%clk 0:00:15]} 49. Bd4 {[%clk 0:00:51.7]} 49... gxf4+ {[%clk
0:00:14.7]} 50. Qxf4 {[%clk 0:00:52.2]} 50... Qg6+ {[%clk 0:00:14.9]} 51. Kf2
{[%clk 0:00:51.9]} 51... Qc2+ {[%clk 0:00:14.4]} 52. Kg3 {[%clk 0:00:52.2]}
52... Qd3+ {[%clk 0:00:14.3]} 53. Kg2 {[%clk 0:00:51.5]} 53... Qe4+ {[%clk
0:00:14.6]} 54. Qxe4 {[%clk 0:00:51.3]} 54... Rxe4 {[%clk 0:00:15.5]} 55. Bc3
{[%clk 0:00:52.2]} 55... Re2+ {[%clk 0:00:15.6]} 56. Kf3 {[%clk 0:00:52.5]}
56... Re6 {[%clk 0:00:16.5]} 57. a3 {[%clk 0:00:52.4]} 57... f6 {[%clk
0:00:16.8]} 58. Kf4 {[%clk 0:00:52.7]} 58... Kf7 {[%clk 0:00:17.3]} 59. Kf3
{[%clk 0:00:53.5]} 59... g5 {[%clk 0:00:17.6]} 60. Kg4 {[%clk 0:00:53.9]} 60...
Kg6 {[%clk 0:00:18.2]} 61. Kf3 {[%clk 0:00:54.2]} 61... f5 {[%clk 0:00:18.6]}
0-1

[Event "*** Titled Tuesday Blitz"]
[Site "Chess.com"]
[Date "2020.05.05"]
[Round "10"]
[White "SlavenPastar"]
[Black "VALPARAISO37"]
[Result "1-0"]
[WhiteElo "2371"]
[BlackElo "2380"]
[TimeControl "180+1"]
[EndTime "11:59:41 PDT"]
[Termination "SlavenPastar won on time"]

1. d4 {[%clk 0:03:00.1]} 1... Nf6 {[%clk 0:02:59.7]} 2. c4 {[%clk 0:02:57]} 2...
e6 {[%clk 0:02:59.8]} 3. Nc3 {[%clk 0:02:55.3]} 3... Bb4 {[%clk 0:02:59]} 4. e3
{[%clk 0:02:55.2]} 4... O-O {[%clk 0:02:58.3]} 5. Bd3 {[%clk 0:02:53.4]} 5... d5
{[%clk 0:02:58.3]} 6. cxd5 {[%clk 0:02:53.9]} 6... exd5 {[%clk 0:02:58.2]} 7.
Bd2 {[%clk 0:02:54.2]} 7... b6 {[%clk 0:02:57.8]} 8. Nge2 {[%clk 0:02:54.4]}
8... Bb7 {[%clk 0:02:58.1]} 9. O-O {[%clk 0:02:54.7]} 9... a6 {[%clk 0:02:58.5]}
10. Rc1 {[%clk 0:02:54.7]} 10... Bd6 {[%clk 0:02:58.3]} 11. f3 {[%clk
0:02:54.6]} 11... c5 {[%clk 0:02:57.5]} 12. Qe1 {[%clk 0:02:54.5]} 12... Nc6
{[%clk 0:02:57.1]} 13. Qf2 {[%clk 0:02:54.1]} 13... cxd4 {[%clk 0:02:56.1]} 14.
exd4 {[%clk 0:02:53.4]} 14... h6 {[%clk 0:02:55.1]} 15. Kh1 {[%clk 0:02:43]}
15... Re8 {[%clk 0:02:54.9]} 16. Qh4 {[%clk 0:02:37.6]} 16... Ne7 {[%clk
0:02:50.7]} 17. Bxh6 {[%clk 0:02:32.1]} 17... gxh6 {[%clk 0:02:43.7]} 18. Qxh6
{[%clk 0:02:32.8]} 18... Ng6 {[%clk 0:02:44.5]} 19. Bxg6 {[%clk 0:02:26.9]}
19... fxg6 {[%clk 0:02:44.4]} 20. Qxg6+ {[%clk 0:02:26.9]} 20... Kh8 {[%clk
0:02:44.9]} 21. Ng3 {[%clk 0:02:11.5]} 21... Rg8 {[%clk 0:02:44.3]} 22. Qh6+
{[%clk 0:02:09.4]} 22... Nh7 {[%clk 0:02:44.2]} 23. Nf5 {[%clk 0:02:01.6]} 23...
Bf8 {[%clk 0:02:41.5]} 24. Qh5 {[%clk 0:01:41.3]} 24... Rg5 {[%clk 0:02:38]} 25.
Qf7 {[%clk 0:01:35.7]} 25... Qf6 {[%clk 0:02:35.6]} 26. Qxb7 {[%clk 0:01:28.4]}
26... Rd8 {[%clk 0:02:21]} 27. Ng3 {[%clk 0:01:22.6]} 27... Qh6 {[%clk
0:02:12.9]} 28. Nce2 {[%clk 0:01:11.2]} 28... Rg7 {[%clk 0:01:59.7]} 29. Qc6
{[%clk 0:01:06.4]} 29... Rg6 {[%clk 0:01:58.3]} 30. Qb7 {[%clk 0:01:02]} 30...
Rg7 {[%clk 0:01:54.5]} 31. Rc7 {[%clk 0:01:00.5]} 31... Rxc7 {[%clk 0:01:36.6]}
32. Qxc7 {[%clk 0:01:01.4]} 32... Re8 {[%clk 0:01:35.6]} 33. Qf4 {[%clk
0:00:52.3]} 33... Qg6 {[%clk 0:01:31.2]} 34. Nc3 {[%clk 0:00:42.6]} 34... Bd6
{[%clk 0:01:27.5]} 35. Qg4 {[%clk 0:00:35]} 35... Qf6 {[%clk 0:01:21.5]} 36. Qf5
{[%clk 0:00:30.5]} 36... Qh6 {[%clk 0:01:13.8]} 37. Qh5 {[%clk 0:00:26.6]} 37...
Qe6 {[%clk 0:01:12]} 38. Qxd5 {[%clk 0:00:25.4]} 38... Qg6 {[%clk 0:01:10.2]}
39. Qh5 {[%clk 0:00:19.4]} 39... Qg8 {[%clk 0:01:09.5]} 40. Nf5 {[%clk
0:00:14.6]} 40... Bf4 {[%clk 0:01:03.3]} 41. Ne4 {[%clk 0:00:14.9]} 41... Rc8
{[%clk 0:01:01.1]} 42. Nf6 {[%clk 0:00:14.4]} 42... Rc7 {[%clk 0:00:01.3]} 43.
Nxg8 {[%clk 0:00:12.1]} 1-0

[Event "*** Titled Tuesday Blitz"]
[Site "Chess.com"]
[Date "2020.05.05"]
[Round "10"]
[White "lachesisQ"]
[Black "Anton_Demchenko"]
[Result "0-1"]
[WhiteElo "3076"]
[BlackElo "2874"]
[TimeControl "180+1"]
[EndTime "11:59:46 PDT"]
[Termination "Anton_Demchenko won by resignation"]

1. e4 {[%clk 0:02:28.9]} 1... e5 {[%clk 0:03:00]} 2. Nf3 {[%clk 0:02:28.9]} 2...
Nc6 {[%clk 0:03:00.4]} 3. Bb5 {[%clk 0:02:28.8]} 3... a6 {[%clk 0:02:59.7]} 4.
Ba4 {[%clk 0:02:29]} 4... d6 {[%clk 0:03:00.2]} 5. d4 {[%clk 0:02:28.7]} 5... b5
{[%clk 0:02:59.6]} 6. Bb3 {[%clk 0:02:28.6]} 6... Nxd4 {[%clk 0:03:00]} 7. Nxd4
{[%clk 0:02:28.3]} 7... exd4 {[%clk 0:03:00.9]} 8. Qxd4 {[%clk 0:02:21.9]} 8...
c5 {[%clk 0:02:58.1]} 9. Qd5 {[%clk 0:02:22]} 9... Be6 {[%clk 0:02:58.3]} 10.
Qc6+ {[%clk 0:02:22.4]} 10... Bd7 {[%clk 0:02:58.7]} 11. Qd5 {[%clk 0:02:22.9]}
11... c4 {[%clk 0:02:59]} 12. Bxc4 {[%clk 0:02:19.6]} 12... bxc4 {[%clk
0:02:59.3]} 13. Qxc4 {[%clk 0:02:20.5]} 13... Nf6 {[%clk 0:02:59.3]} 14. Nc3
{[%clk 0:02:20.8]} 14... Be7 {[%clk 0:02:59.5]} 15. O-O {[%clk 0:02:20.6]} 15...
O-O {[%clk 0:02:59.9]} 16. Re1 {[%clk 0:02:17.3]} 16... Be6 {[%clk 0:02:58.5]}
17. Qd3 {[%clk 0:02:17.3]} 17... Qc8 {[%clk 0:02:27.3]} 18. b3 {[%clk
0:02:14.1]} 18... Rd8 {[%clk 0:02:24.6]} 19. Bb2 {[%clk 0:02:09.4]} 19... d5
{[%clk 0:02:19.5]} 20. exd5 {[%clk 0:02:09.2]} 20... Nxd5 {[%clk 0:02:18.5]} 21.
Nxd5 {[%clk 0:02:08]} 21... Rxd5 {[%clk 0:02:17.4]} 22. Qe2 {[%clk 0:02:06]}
22... Bc5 {[%clk 0:02:04.7]} 23. Rad1 {[%clk 0:02:03.1]} 23... Bg4 {[%clk
0:01:48.4]} 24. Rxd5 {[%clk 0:02:02.9]} 24... Bxe2 {[%clk 0:01:48.2]} 25. Rxe2
{[%clk 0:02:03.8]} 25... Bf8 {[%clk 0:01:48.3]} 26. c4 {[%clk 0:02:03.6]} 26...
Qc6 {[%clk 0:01:46]} 27. Bc1 {[%clk 0:01:52]} 27... Re8 {[%clk 0:01:36.3]} 28.
Be3 {[%clk 0:01:52]} 28... h6 {[%clk 0:01:29.9]} 29. g3 {[%clk 0:01:47.5]} 29...
Be7 {[%clk 0:01:16.9]} 30. Red2 {[%clk 0:01:47]} 30... Bf6 {[%clk 0:01:10.9]}
31. a4 {[%clk 0:01:40.7]} 31... Bg5 {[%clk 0:00:56.1]} 32. Bxg5 {[%clk
0:01:29.7]} 32... hxg5 {[%clk 0:00:57]} 33. h3 {[%clk 0:01:19]} 33... Re1+
{[%clk 0:00:54]} 34. Kg2 {[%clk 0:01:19.4]} 34... Rb1 {[%clk 0:00:54.7]} 35. Rd3
{[%clk 0:01:11.5]} 35... Qb7 {[%clk 0:00:49.5]} 36. a5 {[%clk 0:01:09.5]} 36...
Rxb3 {[%clk 0:00:47.7]} 37. Rxb3 {[%clk 0:00:45.2]} 37... Qxb3 {[%clk
0:00:47.7]} 38. Rxg5 {[%clk 0:00:45.5]} 38... Qxc4 {[%clk 0:00:47.6]} 39. h4
{[%clk 0:00:45.9]} 39... Qe4+ {[%clk 0:00:44.8]} 40. Kg1 {[%clk 0:00:43.6]}
40... Qd4 {[%clk 0:00:35.2]} 41. Rf5 {[%clk 0:00:38.7]} 41... f6 {[%clk
0:00:33.8]} 42. h5 {[%clk 0:00:32]} 42... Kf7 {[%clk 0:00:34]} 43. Kh2 {[%clk
0:00:28.9]} 43... Ke6 {[%clk 0:00:29]} 44. Rf4 {[%clk 0:00:26.1]} 44... Qd5
{[%clk 0:00:27.5]} 45. h6 {[%clk 0:00:24]} 45... gxh6 {[%clk 0:00:25.8]} 46. Ra4
{[%clk 0:00:24.4]} 46... Qb3 {[%clk 0:00:25.2]} 47. Re4+ {[%clk 0:00:23.2]}
47... Kf7 {[%clk 0:00:25.7]} 48. Rf4 {[%clk 0:00:21]} 48... Qa2 {[%clk
0:00:21.9]} 49. Rf5 {[%clk 0:00:20.8]} 49... Kg6 {[%clk 0:00:21.5]} 50. g4
{[%clk 0:00:21.1]} 50... h5 {[%clk 0:00:22.1]} 51. Rxh5 {[%clk 0:00:17.5]} 51...
Qxf2+ {[%clk 0:00:22.2]} 52. Kh3 {[%clk 0:00:18.1]} 52... Qf3+ {[%clk
0:00:22.2]} 53. Kh2 {[%clk 0:00:17.6]} 53... Qxg4 {[%clk 0:00:19.4]} 54. Rh8
{[%clk 0:00:17.3]} 54... Qb4 {[%clk 0:00:18.7]} 55. Rg8+ {[%clk 0:00:16.7]}
55... Kf7 {[%clk 0:00:18.9]} 0-1

[Event "*** Titled Tuesday Blitz"]
[Site "Chess.com"]
[Date "2020.05.05"]
[Round "10"]
[White "mishikomchedlishvili"]
[Black "theblitzchamp"]
[Result "0-1"]
[WhiteElo "2837"]
[BlackElo "2704"]
[TimeControl "180+1"]
[EndTime "11:59:46 PDT"]
[Termination "theblitzchamp won by resignation"]

1. d4 {[%clk 0:03:00.9]} 1... Nf6 {[%clk 0:02:56.1]} 2. Bg5 {[%clk 0:02:59]}
2... c5 {[%clk 0:02:55.6]} 3. d5 {[%clk 0:02:56.1]} 3... Qb6 {[%clk 0:02:54.9]}
4. Nc3 {[%clk 0:02:53.9]} 4... Qxb2 {[%clk 0:02:53.8]} 5. Bd2 {[%clk 0:02:53.8]}
5... Qb6 {[%clk 0:02:53.4]} 6. e4 {[%clk 0:02:53.7]} 6... d6 {[%clk 0:02:53.2]}
7. f4 {[%clk 0:02:53.6]} 7... g6 {[%clk 0:02:41.2]} 8. Nf3 {[%clk 0:02:40.4]}
8... Bg7 {[%clk 0:02:40.7]} 9. Rb1 {[%clk 0:02:27.1]} 9... Qd8 {[%clk
0:02:39.6]} 10. Bb5+ {[%clk 0:02:23.8]} 10... Bd7 {[%clk 0:02:23.5]} 11. e5
{[%clk 0:02:21.7]} 11... dxe5 {[%clk 0:02:22]} 12. fxe5 {[%clk 0:02:19.6]} 12...
Nxd5 {[%clk 0:02:17.1]} 13. Nxd5 {[%clk 0:01:50.3]} 13... Bxb5 {[%clk
0:02:16.1]} 14. Bg5 {[%clk 0:01:50.7]} 14... Bc6 {[%clk 0:01:05.2]} 15. Nxe7
{[%clk 0:01:49.2]} 15... Qxd1+ {[%clk 0:01:02.9]} 16. Rxd1 {[%clk 0:01:48.1]}
16... Bxf3 {[%clk 0:00:52.7]} 17. gxf3 {[%clk 0:01:46.3]} 17... Nd7 {[%clk
0:00:46.3]} 18. Nd5 {[%clk 0:01:28.5]} 18... Bxe5 {[%clk 0:00:45.2]} 19. f4
{[%clk 0:01:28.1]} 19... Bb8 {[%clk 0:00:36.5]} 20. Bh6 {[%clk 0:01:25]} 20...
f6 {[%clk 0:00:30.1]} 21. Kf2 {[%clk 0:01:18.9]} 21... Kf7 {[%clk 0:00:29.3]}
22. Rhg1 {[%clk 0:01:17.5]} 22... Re8 {[%clk 0:00:26.1]} 23. Rg3 {[%clk
0:00:54.1]} 23... Nb6 {[%clk 0:00:25.5]} 24. Re3 {[%clk 0:00:30.9]} 24... Rxe3
{[%clk 0:00:22.3]} 25. Kxe3 {[%clk 0:00:31]} 25... Ke6 {[%clk 0:00:17.5]} 26. c4
{[%clk 0:00:18.9]} 26... Nxc4+ {[%clk 0:00:17.4]} 27. Kf3 {[%clk 0:00:18.9]}
27... Nb6 {[%clk 0:00:17.5]} 28. Nc3 {[%clk 0:00:16.3]} 28... Bc7 {[%clk
0:00:15.6]} 29. Nb5 {[%clk 0:00:16.3]} 29... Bd8 {[%clk 0:00:13]} 30. Rd6+
{[%clk 0:00:14.2]} 30... Kf7 {[%clk 0:00:13.2]} 31. Rd3 {[%clk 0:00:13.1]} 31...
Be7 {[%clk 0:00:13.4]} 32. f5 {[%clk 0:00:11.9]} 32... c4 {[%clk 0:00:13.3]} 33.
Re3 {[%clk 0:00:09.9]} 33... Nd5 {[%clk 0:00:12.2]} 34. Re2 {[%clk 0:00:08.5]}
34... a6 {[%clk 0:00:12.4]} 35. Nd4 {[%clk 0:00:07.7]} 35... Rc8 {[%clk
0:00:12.4]} 36. fxg6+ {[%clk 0:00:05.5]} 36... hxg6 {[%clk 0:00:12.2]} 37. Bc1
{[%clk 0:00:03.7]} 37... c3 {[%clk 0:00:12.4]} 38. Ke4 {[%clk 0:00:04]} 38...
Nb4 {[%clk 0:00:11.2]} 39. a3 {[%clk 0:00:03.6]} 39... Nc6 {[%clk 0:00:10]} 40.
Nf3 {[%clk 0:00:03.6]} 40... Bd6 {[%clk 0:00:08.8]} 41. Kd3 {[%clk 0:00:03.5]}
41... Ne5+ {[%clk 0:00:08.8]} 42. Nxe5+ {[%clk 0:00:03.4]} 42... Bxe5 {[%clk
0:00:09.7]} 43. Kc2 {[%clk 0:00:03.8]} 43... b5 {[%clk 0:00:09.9]} 0-1

[Event "*** Titled Tuesday Blitz"]
[Site "Chess.com"]
[Date "2020.05.05"]
[Round "10"]
[White "warmoatmeal"]
[Black "mjray79"]
[Result "0-1"]
[WhiteElo "2045"]
[BlackElo "2248"]
[TimeControl "180+1"]
[EndTime "11:59:49 PDT"]
[Termination "mjray79 won by checkmate"]

1. d4 {[%clk 0:03:00.9]} 1... Nf6 {[%clk 0:02:59.4]} 2. Nf3 {[%clk 0:03:00.6]}
2... g6 {[%clk 0:02:59.8]} 3. c4 {[%clk 0:02:59.5]} 3... Bg7 {[%clk 0:02:59.9]}
4. Nc3 {[%clk 0:03:00.4]} 4... d6 {[%clk 0:03:00]} 5. Bg5 {[%clk 0:03:00.9]}
5... O-O {[%clk 0:03:00]} 6. e3 {[%clk 0:03:00.5]} 6... c5 {[%clk 0:02:58.6]} 7.
Be2 {[%clk 0:02:52.7]} 7... Nc6 {[%clk 0:02:57.7]} 8. d5 {[%clk 0:02:45.4]} 8...
Nb8 {[%clk 0:02:55]} 9. O-O {[%clk 0:02:45.1]} 9... Nbd7 {[%clk 0:02:55.4]} 10.
Rc1 {[%clk 0:02:43.3]} 10... Rb8 {[%clk 0:02:55.7]} 11. b3 {[%clk 0:02:43.3]}
11... a6 {[%clk 0:02:56.1]} 12. a4 {[%clk 0:02:43]} 12... Ne8 {[%clk 0:02:52.7]}
13. Nd2 {[%clk 0:02:32.8]} 13... Nc7 {[%clk 0:02:52.5]} 14. Nde4 {[%clk
0:02:29]} 14... Nf6 {[%clk 0:02:35.3]} 15. Nxf6+ {[%clk 0:02:28.3]} 15... exf6
{[%clk 0:02:36.2]} 16. Bh4 {[%clk 0:02:28.3]} 16... Bd7 {[%clk 0:02:34.7]} 17.
Bg3 {[%clk 0:02:27.4]} 17... Be8 {[%clk 0:02:30.6]} 18. a5 {[%clk 0:02:18.7]}
18... b5 {[%clk 0:02:29.8]} 19. axb6 {[%clk 0:02:15.9]} 19... Rxb6 {[%clk
0:02:30.1]} 20. Qc2 {[%clk 0:02:03.4]} 20... f5 {[%clk 0:02:27.8]} 21. Rfd1
{[%clk 0:01:55.2]} 21... Qf6 {[%clk 0:02:02.6]} 22. Na4 {[%clk 0:01:47.6]} 22...
Rb4 {[%clk 0:02:00.7]} 23. Nxc5 {[%clk 0:01:43.3]} 23... dxc5 {[%clk 0:01:55.8]}
24. Bxc7 {[%clk 0:01:44.2]} 24... Bd7 {[%clk 0:01:51.2]} 25. d6 {[%clk
0:01:43.4]} 25... f4 {[%clk 0:01:45.7]} 26. e4 {[%clk 0:01:20.9]} 26... g5
{[%clk 0:01:23.1]} 27. Rd5 {[%clk 0:01:19.6]} 27... g4 {[%clk 0:01:22.9]} 28. e5
{[%clk 0:01:18.5]} 28... Qh6 {[%clk 0:01:19.5]} 29. g3 {[%clk 0:00:38.2]} 29...
f3 {[%clk 0:01:13.9]} 30. Bf1 {[%clk 0:00:37.5]} 30... Rxb3 {[%clk 0:01:05.2]}
31. Qxb3 {[%clk 0:00:27]} 31... Qxc1 {[%clk 0:01:04.6]} 32. Qe3 {[%clk
0:00:27.3]} 32... Qb1 {[%clk 0:00:53.5]} 33. Rxc5 {[%clk 0:00:19.2]} 33... Bf5
{[%clk 0:00:45.8]} 34. Rd5 {[%clk 0:00:16]} 34... Be6 {[%clk 0:00:41.8]} 35. Rd4
{[%clk 0:00:14.7]} 35... Bd7 {[%clk 0:00:35.8]} 36. e6 {[%clk 0:00:14.2]} 36...
fxe6 {[%clk 0:00:34.5]} 37. Rxg4 {[%clk 0:00:14.1]} 37... e5 {[%clk 0:00:31.8]}
38. Rxg7+ {[%clk 0:00:12.3]} 38... Kxg7 {[%clk 0:00:30.2]} 39. Qxe5+ {[%clk
0:00:12.8]} 39... Rf6 {[%clk 0:00:27.1]} 40. Qe7+ {[%clk 0:00:12.2]} 40... Rf7
{[%clk 0:00:27.2]} 41. Qg5+ {[%clk 0:00:11.9]} 41... Kh8 {[%clk 0:00:22.4]} 42.
Qd8+ {[%clk 0:00:11.1]} 42... Kg7 {[%clk 0:00:21.7]} 43. Bb6 {[%clk 0:00:09.7]}
43... Qd1 {[%clk 0:00:13.5]} 44. Qg5+ {[%clk 0:00:07.7]} 44... Kh8 {[%clk
0:00:13.4]} 45. Qd8+ {[%clk 0:00:06.6]} 45... Kg7 {[%clk 0:00:13.1]} 46. Qg5+
{[%clk 0:00:07.5]} 46... Kf8 {[%clk 0:00:10.5]} 47. Bd8 {[%clk 0:00:06.2]} 47...
Bh3 {[%clk 0:00:08.2]} 48. Be7+ {[%clk 0:00:05.6]} 48... Ke8 {[%clk 0:00:07]}
49. Qg8+ {[%clk 0:00:03.6]} 49... Kd7 {[%clk 0:00:06.4]} 50. Qd8+ {[%clk
0:00:03.4]} 50... Ke6 {[%clk 0:00:04.8]} 51. Qc7 {[%clk 0:00:03.9]} 51... Qxf1#
{[%clk 0:00:03.1]} 0-1

[Event "*** Titled Tuesday Blitz"]
[Site "Chess.com"]
[Date "2020.05.05"]
[Round "10"]
[White "Stronger1799"]
[Black "Margarita2907"]
[Result "1-0"]
[WhiteElo "2251"]
[BlackElo "1994"]
[TimeControl "180+1"]
[EndTime "11:59:49 PDT"]
[Termination "Stronger1799 won by resignation"]

1. e4 {[%clk 0:02:39.1]} 1... c5 {[%clk 0:02:57.3]} 2. Nf3 {[%clk 0:02:34.3]}
2... d6 {[%clk 0:02:56.5]} 3. d4 {[%clk 0:02:33.3]} 3... cxd4 {[%clk 0:02:55.5]}
4. Nxd4 {[%clk 0:02:33.9]} 4... Nf6 {[%clk 0:02:52.9]} 5. Nc3 {[%clk 0:02:34]}
5... a6 {[%clk 0:02:51.9]} 6. f3 {[%clk 0:02:34.2]} 6... e5 {[%clk 0:02:48.2]}
7. Nb3 {[%clk 0:02:33.9]} 7... Be6 {[%clk 0:02:44.7]} 8. Be3 {[%clk 0:02:34]}
8... Be7 {[%clk 0:02:41.5]} 9. Qd2 {[%clk 0:02:19.7]} 9... Nbd7 {[%clk
0:02:41.1]} 10. g4 {[%clk 0:02:19]} 10... b5 {[%clk 0:02:40.2]} 11. g5 {[%clk
0:02:17.4]} 11... b4 {[%clk 0:02:38.2]} 12. Ne2 {[%clk 0:02:13]} 12... Nh5
{[%clk 0:02:37.5]} 13. Ng3 {[%clk 0:02:07.8]} 13... Nxg3 {[%clk 0:02:28.4]} 14.
hxg3 {[%clk 0:02:08.7]} 14... a5 {[%clk 0:02:26.6]} 15. f4 {[%clk 0:02:01.3]}
15... g6 {[%clk 0:02:11.1]} 16. Bh3 {[%clk 0:01:33.3]} 16... Bxh3 {[%clk
0:02:08.1]} 17. Rxh3 {[%clk 0:01:34.2]} 17... a4 {[%clk 0:02:08.6]} 18. Nc1
{[%clk 0:01:34]} 18... Rc8 {[%clk 0:01:58.6]} 19. Nd3 {[%clk 0:01:30.7]} 19...
Nc5 {[%clk 0:01:46.6]} 20. Bxc5 {[%clk 0:01:17.9]} 20... dxc5 {[%clk 0:01:45.5]}
21. Nxe5 {[%clk 0:01:18.3]} 21... Qxd2+ {[%clk 0:01:36.3]} 22. Kxd2 {[%clk
0:01:19.2]} 22... c4 {[%clk 0:01:35]} 23. Rah1 {[%clk 0:01:17.2]} 23... Rd8+
{[%clk 0:01:21.4]} 24. Ke2 {[%clk 0:01:16.2]} 24... c3 {[%clk 0:01:19]} 25. bxc3
{[%clk 0:01:15.7]} 25... bxc3 {[%clk 0:01:18.6]} 26. Nd3 {[%clk 0:01:08.9]}
26... h5 {[%clk 0:01:15.7]} 27. gxh6 {[%clk 0:01:08.7]} 27... O-O {[%clk
0:01:11]} 28. g4 {[%clk 0:01:01.7]} 28... Rfe8 {[%clk 0:00:58.1]} 29. h7+ {[%clk
0:00:54.8]} 29... Kh8 {[%clk 0:00:57.5]} 30. Ne5 {[%clk 0:00:52.1]} 30... Rd2+
{[%clk 0:00:56]} 31. Ke1 {[%clk 0:00:50.3]} 31... Rf8 {[%clk 0:00:27.4]} 32.
Rxc3 {[%clk 0:00:49.7]} 32... Rg2 {[%clk 0:00:24.1]} 33. Rc7 {[%clk 0:00:47.8]}
33... Bb4+ {[%clk 0:00:23]} 34. c3 {[%clk 0:00:46.3]} 34... Rc2 {[%clk
0:00:19.7]} 35. Nxf7+ {[%clk 0:00:40.2]} 35... Rxf7 {[%clk 0:00:19.5]} 36. Rxf7
{[%clk 0:00:31.1]} 36... Rc1+ {[%clk 0:00:19.2]} 37. Kd2 {[%clk 0:00:27.9]}
37... Rxh1 {[%clk 0:00:20.1]} 38. cxb4 {[%clk 0:00:25.2]} 38... Rh2+ {[%clk
0:00:19.4]} 39. Kd3 {[%clk 0:00:21.3]} 39... Rxa2 {[%clk 0:00:20.3]} 40. e5
{[%clk 0:00:19.9]} 40... Rb2 {[%clk 0:00:11.2]} 41. e6 {[%clk 0:00:19.6]} 41...
Rxb4 {[%clk 0:00:09]} 42. e7 {[%clk 0:00:19.9]} 42... Rb3+ {[%clk 0:00:08.4]}
43. Kc4 {[%clk 0:00:17.8]} 43... Re3 {[%clk 0:00:08.4]} 44. Rf8+ {[%clk
0:00:16.9]} 44... Kxh7 {[%clk 0:00:08.3]} 45. e8=Q {[%clk 0:00:17]} 1-0